bitfinex/quotes_BTCUSD_20241202
["timestamp","ask_amount","ask_price","bid_price","bid_amount"]
[1733157759317,0.18691204,96200.0,96171.0,0.34161298]
[1733157759318,0.00947779,96196.0,96188.0,0.1305]
[1733157759538,0.00947851,96209.0,96191.0,0.2]
[1733157759747,0.00947851,96210.0,96192.0,0.00183969]
[1733157759956,0.00947851,96210.0,96193.0,0.00183969]
[1733157760196,0.207886,96207.0,96194.0,0.07481807]
[1733157760615,0.18691204,96230.0,96198.0,0.2]
[1733157760839,0.18691204,96230.0,96202.0,0.538395]
[1733157760840,0.01121833,96229.0,96202.0,0.538395]
[1733157761070,0.207849,96224.0,96208.0,0.2]
[1733157761286,0.207839,96228.0,96209.0,0.00183939]
[1733157761494,0.0017366,96229.0,96214.0,0.207869]
[1733157761707,0.0017366,96229.0,96211.0,0.2]
[1733157761708,0.20784,96228.0,96215.0,0.0018393]
[1733157761935,0.0017366,96229.0,96211.0,0.407874]
[1733157761936,0.207854,96222.0,96212.0,0.00183933]
[1733157762118,0.0017366,96229.0,96211.0,0.2]
[1733157762119,0.207844,96226.0,96211.0,0.2]
[1733157762327,0.00017798,96228.0,96212.0,0.00183935]
[1733157762550,0.00017798,96228.0,96218.0,0.2]
[1733157762769,0.00017798,96228.0,96227.0,0.2]
[1733157762956,0.00017798,96228.0,96220.0,0.2]
[1733157763191,0.00017798,96228.0,96227.0,0.2]
[1733157763424,0.00017798,96228.0,96227.0,0.407841]
[1733157763652,0.00017798,96228.0,96227.0,0.50066433]
[1733157764156,0.00817798,96228.0,96227.0,0.29282333]
[1733157764413,0.00017798,96228.0,96227.0,0.29282333]
[1733157764640,0.00217798,96228.0,96227.0,0.2]
[1733157765309,0.00217798,96228.0,96227.0,0.20183901]
[1733157766166,0.02517798,96228.0,96227.0,0.20183901]
[1733157766593,0.02517798,96228.0,96227.0,0.24933901]
[1733157766804,0.02517798,96228.0,96227.0,0.2475]
[1733157767240,0.02517798,96228.0,96218.0,0.0818]
[1733157767241,0.230841,96227.0,96218.0,0.0818]
[1733157767458,0.12802319,96228.0,96210.0,0.0475]
[1733157767459,0.230876,96211.0,96210.0,0.0475]
[1733157768116,0.023,96213.0,96210.0,0.0475]
[1733157768371,0.207863,96218.0,96211.0,0.02475]
[1733157768603,0.023,96217.0,96211.0,0.02475]
[1733157768837,0.002,96227.0,96211.0,0.02475]
[1733157768838,0.023,96223.0,96211.0,0.02475]
[1733157769044,0.023,96225.0,96211.0,0.02475]
[1733157769266,0.023,96226.0,96211.0,0.02658938]
[1733157769468,0.023,96226.0,96212.0,0.04181197]
[1733157769680,0.002,96227.0,96213.0,0.00183938]
[1733157769681,0.023,96224.0,96213.0,0.00183938]
[1733157769896,0.023,96224.0,96217.0,0.2]
[1733157770131,0.023,96226.0,96217.0,0.2]
[1733157770352,0.00017798,96228.0,96217.0,0.407862]
[1733157770353,0.02317798,96228.0,96217.0,0.407862]
[1733157770559,0.00017798,96228.0,96220.0,0.0759]
[1733157770781,0.00017798,96228.0,96221.0,0.00183913]
[1733157770996,0.00017798,96228.0,96220.0,0.0759]
[1733157771201,0.003,96224.0,96220.0,0.0759]
[1733157771617,0.00017798,96228.0,96220.0,0.0759]
[1733157771841,0.02317798,96228.0,96221.0,0.07100188]
[1733157772057,0.00017798,96228.0,96227.0,0.2]
[1733157772302,0.00117798,96228.0,96227.0,0.25143896]
[1733157772569,0.00117798,96228.0,96227.0,0.2496]
[1733157772779,0.00117798,96228.0,96227.0,0.35244521]
[1733157772999,0.20777,96260.0,96244.0,0.207804]
[1733157773197,0.20777,96260.0,96244.0,0.00183875]
[1733157773402,0.40777,96260.0,96244.0,0.00183875]
[1733157773614,0.207782,96255.0,96239.0,0.207815]
[1733157774036,0.20777,96260.0,96239.0,0.207815]
[1733157774255,0.023,96250.0,96240.0,0.207813]
[1733157774461,0.023,96250.0,96245.0,0.2078]
[1733157774673,0.207748,96271.0,96250.0,0.207792]
[1733157774874,0.2017358,96280.0,96250.0,0.40963046]
[1733157775096,0.2094628,96280.0,96260.0,0.40777]
[1733157775302,0.0017358,96280.0,96266.0,0.207757]
[1733157775566,0.0017358,96280.0,96268.0,0.207753]
[1733157775761,0.0017358,96280.0,96267.0,0.24871354]
[1733157776181,0.0017358,96280.0,96267.0,0.04095954]
[1733157776410,0.207731,96278.0,96262.0,0.207766]
[1733157776626,0.207731,96278.0,96250.0,0.10284521]
[1733157776627,0.10284521,96277.0,96247.0,0.2]
[1733157776836,0.207768,96262.0,96248.0,0.00183856]
[1733157777044,0.207759,96266.0,96251.0,0.2]
[1733157777250,0.2,96278.0,96256.0,0.407778]
[1733157777456,0.29032575,96280.0,96252.0,0.03483639]
[1733157777457,0.29432575,96280.0,96260.0,0.20777]
[1733157777670,0.207747,96271.0,96259.0,0.2]
[1733157777894,0.29432575,96280.0,96259.0,0.2]
[1733157777895,0.29032575,96280.0,96259.0,0.2]
[1733157778094,0.207733,96277.0,96264.0,0.20776]
[1733157778300,0.207729,96279.0,96265.0,0.04061197]
[1733157778502,0.10284521,96278.0,96252.0,0.03483639]
[1733157778702,0.023,96250.0,96241.0,0.2]
[1733157778922,0.023,96253.0,96241.0,0.2]
[1733157779112,0.023,96256.0,96247.0,0.00183869]
[1733157779323,0.023,96256.0,96241.0,0.2]
[1733157779324,0.023,96256.0,96244.0,0.207804]
[1733157779520,0.023,96258.0,96246.0,0.1502026]
[1733157779718,0.023,96258.0,96247.0,0.07658196]
[1733157779888,0.02317791,96258.0,96247.0,0.07658196]
[1733157780253,0.00017791,96258.0,96252.0,0.2]
[1733157780451,0.00017791,96258.0,96256.0,0.207779]
[1733157780660,0.00017791,96258.0,96257.0,0.30468365]
[1733157780879,0.0017358,96280.0,96264.0,0.2]
[1733157781069,0.0017358,96280.0,96266.0,0.2]
[1733157781276,0.00232871,96280.0,96272.0,0.2]
[1733157781478,0.00232871,96280.0,96278.0,0.207731]
[1733157781710,0.00232871,96280.0,96279.0,0.00183809]
[1733157781923,0.00232871,96280.0,96279.0,0.0427959]
[1733157782136,0.00532871,96280.0,96279.0,0.1709959]
[1733157782358,0.00532871,96280.0,96279.0,0.3709959]
[1733157782573,0.0017316,96300.0,96290.0,0.207705]
[1733157782772,0.0017316,96300.0,96290.0,0.2918559]
[1733157782923,0.2,96334.0,96307.0,0.207669]
[1733157783180,0.207626,96327.0,96307.0,0.207669]
[1733157783394,0.207626,96327.0,96307.0,0.31235166]
[1733157783567,0.207637,96322.0,96307.0,0.10284521]
[1733157783778,0.207657,96313.0,96296.0,0.407692]
[1733157783996,0.207646,96318.0,96298.0,0.207688]
[1733157784206,0.001731,96326.0,96306.0,0.20767]
[1733157784410,0.001731,96326.0,96318.0,0.207645]
[1733157784627,0.001731,96326.0,96307.0,0.10468263]
[1733157784628,0.00190849,96325.0,96321.0,0.2492]
[1733157784842,0.00190849,96325.0,96322.0,0.00183724]
[1733157785042,0.00190849,96325.0,96323.0,0.04586742]
[1733157785355,0.00190849,96325.0,96324.0,0.00183716]
[1733157785994,0.02590849,96325.0,96324.0,0.00183716]
[1733157786193,0.023,96324.0,96321.0,0.0492]
[1733157786718,0.00290849,96325.0,96323.0,0.2]
[1733157786981,0.001731,96326.0,96324.0,0.47610064]
[1733157787168,0.001731,96326.0,96325.0,0.2]
[1733157787419,0.147566,96344.0,96330.0,0.415237]
[1733157787757,0.001731,96348.0,96333.0,0.2]
[1733157787960,0.001731,96348.0,96338.0,0.207601]
[1733157788161,0.001731,96348.0,96344.0,0.207587]
[1733157788391,0.001731,96348.0,96346.0,0.207585]
[1733157788586,0.001731,96348.0,96347.0,0.00183669]
[1733157789133,0.007731,96348.0,96347.0,0.00183669]
[1733157789323,0.007731,96348.0,96347.0,0.05073669]
[1733157789603,0.0017302,96377.0,96347.0,0.05073669]
[1733157789604,0.2017302,96377.0,96349.0,0.2]
[1733157789826,0.2017302,96377.0,96350.0,0.0018365]
[1733157790048,0.207545,96365.0,96350.0,0.0018365]
[1733157790268,0.207553,96361.0,96349.0,0.2]
[1733157790504,0.2017302,96377.0,96347.0,0.0489]
[1733157790790,0.2,96349.0,96330.0,0.0463]
[1733157791051,0.20763,96325.0,96324.0,0.0797]
[1733157791280,0.023,96325.0,96324.0,0.0797]
[1733157791502,0.230611,96334.0,96324.0,0.08153735]
[1733157791738,0.207628,96326.0,96325.0,0.00817142]
[1733157791981,0.207612,96334.0,96325.0,0.00817142]
[1733157792194,0.023,96329.0,96325.0,0.00817142]
[1733157792482,0.023,96327.0,96325.0,0.00817142]
[1733157792702,0.023,96327.0,96326.0,0.2]
[1733157792919,0.023,96327.0,96325.0,0.00817142]
[1733157793166,0.023,96328.0,96324.0,0.0797]
[1733157793396,0.023,96326.0,96315.0,0.2]
[1733157793630,0.023,96326.0,96325.0,0.004]
[1733157793834,0.023,96327.0,96325.0,0.004]
[1733157794165,0.023,96326.0,96325.0,0.004]
[1733157794648,0.023,96326.0,96325.0,0.20583725]
[1733157795010,0.023,96326.0,96325.0,0.36681107]
[1733157795139,0.023,96326.0,96325.0,0.37197382]
[1733157795347,0.023,96326.0,96325.0,0.44127382]
[1733157795568,0.48734737,96360.0,96339.0,0.2]
[1733157795569,0.28734737,96360.0,96339.0,0.2]
[1733157795817,0.20755,96363.0,96341.0,0.0471]
[1733157796141,0.207559,96358.0,96342.0,0.23432344]
[1733157796297,0.207559,96358.0,96346.0,0.207585]
[1733157796497,0.2,96369.0,96342.0,0.02673044]
[1733157796498,0.207568,96354.0,96342.0,0.02673044]
[1733157796713,0.28734737,96380.0,96342.0,0.02673044]
[1733157796714,0.28734737,96380.0,96344.0,0.0804]
[1733157796867,0.207517,96378.0,96353.0,0.2]
[1733157797070,0.0017356,96382.0,96344.0,0.0804]
[1733157797071,0.2,96381.0,96361.0,0.2]
[1733157797309,0.207532,96371.0,96362.0,0.00183637]
[1733157797508,0.207527,96373.0,96362.0,0.2]
[1733157797684,0.2,96381.0,96362.0,0.20755]
[1733157797884,0.2,96381.0,96363.0,0.04277502]
[1733157798093,0.15,96380.0,96363.0,0.00183637]
[1733157798324,0.00232007,96377.0,96363.0,0.00183638]
[1733157798515,0.207522,96375.0,96364.0,0.00183638]
[1733157798710,0.023,96372.0,96364.0,0.00183638]
[1733157799157,0.023,96372.0,96362.0,0.2]
[1733157799158,0.023,96374.0,96363.0,0.207548]
[1733157799359,0.023,96374.0,96364.0,0.06353046]
[1733157799561,0.023,96372.0,96364.0,0.06169404]
[1733157799923,0.023,96364.0,96354.0,0.02]
[1733157800127,0.023,96362.0,96342.0,0.02489368]
[1733157800326,0.31034737,96364.0,96342.0,0.02489368]
[1733157800327,0.023,96346.0,96342.0,0.02489368]
[1733157800740,0.023,96345.0,96344.0,0.0564]
[1733157800966,0.023,96345.0,96344.0,0.06923937]
[1733157801109,0.207584,96347.0,96344.0,0.06923937]
[1733157801318,0.207576,96351.0,96344.0,0.06923937]
[1733157801526,0.006,96374.0,96364.0,0.001]
[1733157801728,0.006,96374.0,96365.0,0.0226923]
[1733157801952,0.83124737,96400.0,96365.0,0.0208558]
[1733157801953,0.00232007,96377.0,96365.0,0.0208558]
[1733157802178,0.00232007,96377.0,96366.0,0.0018364]
[1733157802389,0.00232007,96377.0,96365.0,0.2283978]
[1733157802390,0.00232007,96377.0,96367.0,0.1046816]
[1733157802593,0.0017302,96399.0,96384.0,0.2]
[1733157802853,0.0017302,96399.0,96368.0,0.08268983]
[1733157802854,0.0017302,96399.0,96396.0,0.207476]
[1733157803055,0.00190701,96399.0,96398.0,0.207473]
[1733157803311,0.00190701,96399.0,96398.0,0.2574088]
[1733157803540,0.0017334,96412.0,96404.0,0.20746]
[1733157803748,0.2,96430.0,96404.0,0.20746]
[1733157803749,0.207396,96434.0,96420.0,0.207424]
[1733157803951,0.00104161,96429.0,96421.0,0.00183536]
[1733157804775,0.10284521,96428.0,96404.0,0.0793]
[1733157804981,0.10284521,96428.0,96405.0,0.03150902]
[1733157804982,0.023,96413.0,96405.0,0.03150902]
[1733157805197,0.023,96413.0,96404.0,0.0793]
[1733157805620,0.173,96423.0,96404.0,0.0793]
[1733157805831,0.27584521,96423.0,96421.0,0.008]
[1733157806275,0.023,96413.0,96405.0,0.00183565]
[1733157806479,0.023,96411.0,96404.0,0.0883]
[1733157806679,0.023,96411.0,96404.0,0.10735217]
[1733157806946,0.023,96413.0,96404.0,0.0883]
[1733157807179,0.023,96422.0,96405.0,0.00183575]
[1733157807786,0.207432,96417.0,96405.0,0.00183575]
[1733157807998,0.023,96422.0,96421.0,0.009]
[1733157808199,0.001,96423.0,96421.0,0.009]
[1733157808404,0.2,96446.0,96422.0,0.23089901]
[1733157808405,0.207386,96439.0,96422.0,0.23089901]
[1733157808619,0.0008634,96423.0,96422.0,0.02347801]
[1733157809019,0.0008634,96423.0,96406.0,0.207454]
[1733157809233,0.0008634,96423.0,96401.0,0.2]
[1733157809234,0.207432,96417.0,96407.0,0.00183553]
[1733157809441,0.207428,96419.0,96407.0,0.00183553]
[1733157809652,0.023,96418.0,96407.0,0.00183553]
[1733157809856,0.0008634,96423.0,96408.0,0.10284521]
[1733157810064,0.023,96422.0,96409.0,0.03230349]
[1733157810284,0.023,96422.0,96391.0,0.2]
[1733157810285,0.2,96415.0,96391.0,0.2]
[1733157810487,0.023,96414.0,96391.0,0.207487]
[1733157810764,0.2,96415.0,96386.0,0.0822]
[1733157810765,0.023,96402.0,96392.0,0.0018358]
[1733157811189,0.023,96402.0,96387.0,0.00183589]
[1733157811398,0.2,96394.0,96388.0,0.01334359]
[1733157811600,0.023,96381.0,96371.0,0.0758]
[1733157811859,0.023,96381.0,96371.0,0.28333]
[1733157812012,0.28734737,96398.0,96371.0,0.28333]
[1733157812013,0.2,96388.0,96371.0,0.0758]
[1733157812223,0.023,96374.0,96365.0,0.00183631]
[1733157812421,0.023,96374.0,96365.0,0.207544]
[1733157812638,0.023,96374.0,96365.0,0.20938043]
[1733157812845,0.256233,96417.0,96367.0,0.2]
[1733157812846,0.023,96377.0,96367.0,0.2]
[1733157813051,0.21690257,96403.0,96377.0,0.2]
[1733157813254,0.01657905,96429.0,96383.0,0.207505]
[1733157813255,0.207455,96407.0,96383.0,0.207505]
[1733157813457,0.001,96388.0,96385.0,0.2075]
[1733157813664,0.001,96388.0,96387.0,0.207496]
[1733157813868,0.001,96388.0,96387.0,0.30205009]
[1733157814070,0.001,96388.0,96387.0,0.30021421]
[1733157814503,0.001,96388.0,96387.0,0.09271821]
[1733157814705,0.207462,96403.0,96388.0,0.207494]
[1733157814907,0.28734737,96410.0,96390.0,0.20749]
[1733157815110,0.023,96400.0,96391.0,0.06307418]
[1733157815335,0.023,96400.0,96391.0,0.00183585]
[1733157815541,0.2,96385.0,96363.0,0.081]
[1733157815750,0.023,96378.0,96367.0,0.00183633]
[1733157815951,0.023,96382.0,96368.0,0.10284521]
[1733157816159,0.023,96382.0,96369.0,0.00183627]
[1733157816375,0.023,96382.0,96379.0,0.207513]
[1733157816615,0.023,96401.0,96380.0,0.10468117]
[1733157816819,0.023,96404.0,96391.0,0.207488]
[1733157817034,0.023,96404.0,96392.0,0.00183592]
[1733157817288,0.023,96404.0,96393.0,0.00183592]
[1733157817498,0.230454,96407.0,96394.0,0.207481]
[1733157817716,0.230454,96407.0,96396.0,0.207477]
[1733157817917,0.230454,96407.0,96396.0,0.00183585]
[1733157818188,0.437908,96407.0,96395.0,0.0414974]
[1733157818355,0.023,96402.0,96396.0,0.00183585]
[1733157818567,0.023,96402.0,96395.0,0.0414974]
[1733157818786,0.023,96402.0,96395.0,0.00017681]
[1733157819203,0.023,96402.0,96396.0,0.002]
[1733157819412,0.20746,96404.0,96396.0,0.002]
[1733157819619,0.023,96403.0,96395.0,0.00017681]
[1733157819843,0.023,96403.0,96395.0,0.00517681]
[1733157820042,0.023,96405.0,96395.0,0.00517681]
[1733157820174,0.023,96403.0,96396.0,0.04219807]
[1733157820376,0.023,96403.0,96395.0,0.00017681]
[1733157820777,0.023,96405.0,96396.0,0.005]
[1733157821424,0.2,96412.0,96397.0,0.23568108]
[1733157822166,0.2,96412.0,96397.0,0.13283587]
[1733157822350,0.2,96412.0,96398.0,0.00183579]
[1733157822560,0.2,96412.0,96399.0,0.03444966]
[1733157822764,0.023,96411.0,96400.0,0.00183571]
[1733157822967,0.023,96411.0,96407.0,0.207452]
[1733157823178,0.207398,96433.0,96408.0,0.10468077]
[1733157823416,0.2,96431.0,96409.0,0.00183538]
[1733157823610,0.2,96431.0,96405.0,0.2]
[1733157823611,0.207415,96425.0,96410.0,0.13331327]
[1733157823727,0.01571415,96456.0,96405.0,0.207456]
[1733157823728,0.40741,96427.0,96406.0,0.00183546]
[1733157823929,0.20743,96418.0,96407.0,0.207453]
[1733157824167,0.2,96427.0,96399.0,0.03444966]
[1733157824376,0.2008649,96429.0,96400.0,0.10468074]
[1733157824529,0.023,96414.0,96401.0,0.06777882]
[1733157824785,0.023,96414.0,96402.0,0.31030921]
[1733157825190,0.023,96414.0,96406.0,0.207455]
[1733157825387,0.023,96415.0,96406.0,0.207455]
[1733157825794,0.023,96417.0,96406.0,0.207455]
[1733157826019,0.023,96412.0,96402.0,0.10484521]
[1733157826239,0.18604511,96420.0,96402.0,0.10484521]
[1733157826240,0.023,96410.0,96402.0,0.10484521]
[1733157826473,0.207445,96411.0,96402.0,0.10484521]
[1733157826474,0.023,96408.0,96402.0,0.002]
[1733157826930,0.023,96408.0,96397.0,0.131]
[1733157826931,0.023,96414.0,96398.0,0.0018357]
[1733157827169,0.023,96414.0,96406.0,0.007]
[1733157827607,0.2,96411.0,96406.0,0.007]
[1733157827811,0.223,96407.0,96406.0,0.007]
[1733157828041,0.48534123,96407.0,96406.0,0.007]
[1733157828270,0.50053358,96407.0,96406.0,0.007]
[1733157828466,0.2,96397.0,96395.0,0.00017681]
[1733157828778,0.430477,96396.0,96395.0,0.00017681]
[1733157828944,0.43997423,96396.0,96395.0,0.00017681]
[1733157829155,0.43997375,96396.0,96395.0,0.00017681]
[1733157829726,0.23249675,96396.0,96395.0,0.00017681]
[1733157829932,0.23249675,96396.0,96386.0,0.207496]
[1733157829933,0.223,96396.0,96386.0,0.207496]
[1733157830164,0.22317665,96396.0,96386.0,0.207496]
[1733157830488,0.22317665,96396.0,96394.0,0.207481]
[1733157830489,0.00017665,96396.0,96394.0,0.207481]
[1733157830705,0.00017665,96396.0,96395.0,0.00183581]
[1733157830925,0.2,96390.0,96372.0,0.0817]
[1733157831143,0.415025,96380.0,96357.0,0.207561]
[1733157831363,0.415025,96380.0,96358.0,0.00183637]
[1733157831364,0.407516,96378.0,96358.0,0.00183637]
[1733157831579,0.2,96378.0,96369.0,0.207533]
[1733157831786,0.2,96378.0,96372.0,0.207527]
[1733157831997,0.00951317,96378.0,96372.0,0.207527]
[1733157832209,0.21702317,96381.0,96372.0,0.00183629]
[1733157832417,0.2,96382.0,96372.0,0.00183629]
[1733157832681,0.2,96382.0,96378.0,0.02110919]
[1733157832878,0.00951766,96381.0,96378.0,0.02110919]
[1733157833548,0.407509,96382.0,96377.0,0.0017266]
[1733157833549,0.2,96382.0,96377.0,0.0017266]
[1733157833992,0.207512,96380.0,96378.0,0.007]
[1733157834203,0.207512,96380.0,96377.0,0.0017266]
[1733157834415,0.415024,96380.0,96377.0,0.0017266]
[1733157834842,0.207516,96378.0,96377.0,0.0017266]
[1733157835056,0.21703164,96378.0,96377.0,0.0017266]
[1733157835696,0.00951564,96378.0,96377.0,0.0017266]
[1733157835915,0.00951564,96381.0,96377.0,0.0017266]
[1733157836130,0.20951564,96381.0,96377.0,0.0017266]
[1733157836393,0.2,96378.0,96377.0,0.0017266]
[1733157836614,0.54379692,96378.0,96377.0,0.0017266]
[1733157836825,0.55718789,96378.0,96377.0,0.0017266]
[1733157837271,0.5730473,96378.0,96377.0,0.0107266]
[1733157837480,0.55718789,96378.0,96377.0,0.0017266]
[1733157837683,0.76470389,96378.0,96377.0,0.0017266]
[1733157838108,0.557531,96371.0,96370.0,0.0501]
[1733157838314,0.68511889,96371.0,96370.0,0.0501]
[1733157839130,0.68511889,96371.0,96370.0,0.0004145]
[1733157840398,0.69211889,96371.0,96370.0,0.0014145]
[1733157841010,0.69206477,96371.0,96370.0,0.0014145]
[1733157841257,0.18168856,96371.0,96370.0,0.0014145]
[1733157841483,0.0164956,96371.0,96370.0,0.0014145]
[1733157841700,0.0164956,96371.0,96370.0,0.07344573]
[1733157841701,0.007,96371.0,96370.0,0.07344573]
[1733157842356,0.007,96371.0,96370.0,0.17629094]
[1733157842606,0.007,96371.0,96370.0,0.25139094]
[1733157842819,0.007,96371.0,96370.0,0.0014145]
[1733157843042,0.2,96371.0,96370.0,0.0004145]
[1733157843477,0.205,96371.0,96370.0,0.0004145]
[1733157843688,0.30284521,96371.0,96370.0,0.0004145]
[1733157843899,0.30284521,96371.0,96370.0,0.0021411]
[1733157844124,0.51233941,96371.0,96370.0,0.0111411]
[1733157844342,0.67752923,96371.0,96370.0,0.0111411]
[1733157844552,0.67752923,96371.0,96370.0,0.0037411]
[1733157845882,0.67852923,96371.0,96370.0,0.0037411]
[1733157846095,0.67752923,96371.0,96370.0,0.0037411]
[1733157846512,0.68348357,96371.0,96370.0,0.0047411]
[1733157846853,0.48348357,96371.0,96370.0,0.0047411]
[1733157847059,0.006,96371.0,96370.0,0.0047411]
[1733157847268,0.006,96371.0,96370.0,0.2122741]
[1733157847483,0.006,96371.0,96370.0,0.23350151]
[1733157847692,0.006,96371.0,96370.0,0.33634672]
[1733157847901,0.207505,96383.0,96370.0,0.02496851]
[1733157848130,0.2,96389.0,96370.0,0.02496851]
[1733157848353,0.0008649,96429.0,96374.0,0.207522]
[1733157848354,0.2,96401.0,96374.0,0.207522]
[1733157848566,0.01665872,96429.0,96370.0,0.02496851]
[1733157848567,0.2,96402.0,96389.0,0.207491]
[1733157848775,0.2,96395.0,96386.0,0.207498]
[1733157848984,0.207461,96404.0,96386.0,0.207498]
[1733157848985,0.207468,96400.0,96386.0,0.207498]
[1733157849212,0.2,96399.0,96387.0,0.00183601]
[1733157849436,0.2,96402.0,96388.0,0.207494]
[1733157849680,0.2,96397.0,96389.0,0.020933]
[1733157849858,0.2,96411.0,96390.0,0.00183604]
[1733157850074,0.2,96404.0,96394.0,0.20748]
[1733157850505,0.20017665,96396.0,96375.0,0.1621172]
[1733157850707,0.2,96394.0,96376.0,0.0018361]
[1733157850918,0.00017665,96396.0,96378.0,0.2]
[1733157851118,0.00017665,96396.0,96393.0,0.207483]
[1733157851329,0.00017665,96396.0,96394.0,0.00183583]
[1733157851546,0.00017665,96396.0,96383.0,0.00183589]
[1733157851765,0.00017665,96396.0,96391.0,0.207487]
[1733157852045,0.00017665,96396.0,96394.0,0.1294]
[1733157852250,0.00017665,96396.0,96395.0,0.30468072]
[1733157852462,0.00017665,96396.0,96395.0,0.51032421]
[1733157852694,0.0008634,96423.0,96413.0,0.20744]
[1733157852908,0.0008634,96423.0,96413.0,0.35102921]
[1733157853116,0.0008634,96423.0,96404.0,0.20746]
[1733157853117,0.2008634,96423.0,96404.0,0.20746]
[1733157853334,0.207423,96422.0,96404.0,0.20746]
[1733157853538,0.2008634,96423.0,96405.0,0.00183562]
[1733157853744,0.2008634,96423.0,96410.0,0.207445]
[1733157853957,0.2008634,96423.0,96412.0,0.207443]
[1733157854170,0.0008634,96423.0,96413.0,0.10284521]
[1733157854378,0.0008634,96423.0,96413.0,0.17645399]
[1733157855012,0.0008634,96423.0,96413.0,0.52335399]
[1733157855232,0.0008634,96423.0,96422.0,0.407421]
[1733157855437,0.0008634,96423.0,96422.0,0.53326621]
[1733157856093,0.0008649,96429.0,96428.0,0.407408]
[1733157856301,0.0008649,96429.0,96428.0,0.58432063]
[1733157856529,0.2,96451.0,96430.0,0.2]
[1733157856740,0.2,96451.0,96439.0,0.207384]
[1733157856944,0.2,96451.0,96431.0,0.10284521]
[1733157856945,0.407359,96451.0,96431.0,0.10284521]
[1733157857157,0.2,96451.0,96439.0,0.207383]
[1733157857365,0.2,96451.0,96440.0,0.0207383]
[1733157857572,0.20017678,96451.0,96436.0,0.20739]
[1733157858189,0.2,96446.0,96429.0,0.207406]
[1733157858396,0.207361,96450.0,96428.0,0.12086742]
[1733157858397,0.2,96439.0,96430.0,0.00183517]
[1733157858609,0.207387,96438.0,96428.0,0.0468]
[1733157859032,0.2,96439.0,96429.0,0.207406]
[1733157859244,0.2,96439.0,96430.0,0.2535662]
[1733157859447,0.2,96439.0,96434.0,0.207394]
[1733157859660,0.15,96443.0,96430.0,0.0531622]
[1733157859866,0.00017678,96451.0,96430.0,0.0531622]
[1733157859867,0.20017678,96451.0,96435.0,0.10468045]
[1733157860076,0.20017678,96451.0,96445.0,0.207371]
[1733157860286,0.20017678,96451.0,96437.0,0.207389]
[1733157860493,0.20017678,96451.0,96442.0,0.207378]
[1733157861145,0.20017678,96451.0,96441.0,0.207379]
[1733157861334,0.207361,96450.0,96442.0,0.05194482]
[1733157861543,0.20017678,96451.0,96443.0,0.207376]
[1733157861544,0.00017678,96451.0,96443.0,0.207376]
[1733157861753,0.00017678,96451.0,96449.0,0.207363]
[1733157861958,0.00017678,96451.0,96445.0,0.207372]
[1733157861959,0.00017678,96451.0,96450.0,0.00183483]
[1733157862178,0.00017678,96451.0,96449.0,0.207362]
[1733157863018,0.00017678,96451.0,96450.0,0.00183484]
[1733157863236,0.00017678,96451.0,96450.0,0.41027116]
[1733157863472,0.0146341,96488.0,96450.0,0.41027116]
[1733157863473,0.0146341,96488.0,96471.0,0.207315]
[1733157863680,0.00145382,96474.0,96473.0,0.252911]
[1733157863883,0.00145382,96474.0,96473.0,0.35575621]
[1733157866036,0.00145382,96474.0,96467.0,0.207322]
[1733157866037,0.00145382,96474.0,96458.0,0.2818]
[1733157866257,0.00145382,96474.0,96459.0,0.13743962]
[1733157866469,0.00145382,96474.0,96473.0,0.009]
[1733157867134,0.20876282,96474.0,96473.0,0.009]
[1733157867347,0.2,96471.0,96458.0,0.0818]
[1733157867557,0.207329,96465.0,96459.0,0.009]
[1733157867767,0.2,96460.0,96459.0,0.009]
[1733157868026,0.407339,96460.0,96459.0,0.009]
[1733157868237,0.407333,96463.0,96459.0,0.009]
[1733157868439,0.2,96460.0,96459.0,0.009]
[1733157869072,0.2,96459.0,96446.0,0.0491]
[1733157869310,0.207354,96453.0,96446.0,0.0491]
[1733157869502,0.207314,96472.0,96422.0,0.2091448]
[1733157869503,0.2,96451.0,96438.0,0.0795]
[1733157869695,0.2,96451.0,96439.0,0.00795]
[1733157869936,0.2,96451.0,96440.0,0.207382]
[1733157870153,0.35,96458.0,96441.0,0.00183505]
[1733157870365,0.2,96450.0,96445.0,0.20737]
[1733157870573,0.2,96450.0,96440.0,0.209215]
[1733157870773,0.2,96450.0,96441.0,0.0504053]
[1733157871002,0.2,96450.0,96442.0,0.207378]
[1733157871422,0.2,96450.0,96441.0,0.0504053]
[1733157871627,0.407361,96450.0,96439.0,0.00795]
[1733157871918,0.207363,96449.0,96440.0,0.001835]
[1733157872296,0.2,96450.0,96441.0,0.0302673]
[1733157872510,0.2,96450.0,96441.0,0.0332673]
[1733157872717,0.2,96450.0,96441.0,0.0302673]
[1733157872921,0.407363,96450.0,96441.0,0.0302673]
[1733157873134,0.2,96450.0,96441.0,0.0302673]
[1733157873349,0.2,96450.0,96442.0,0.207378]
[1733157873556,0.407363,96450.0,96441.0,0.0302673]
[1733157873763,0.207378,96442.0,96441.0,0.007]
[1733157874174,0.206378,96442.0,96441.0,0.007]
[1733157874407,0.406378,96442.0,96441.0,0.007]
[1733157874609,0.2,96442.0,96441.0,0.007]
[1733157875024,0.2,96442.0,96441.0,0.00717678]
[1733157875229,0.2,96442.0,96441.0,0.00017678]
[1733157875643,0.2,96442.0,96441.0,0.00917678]
[1733157876749,0.2,96462.0,96441.0,0.11202199]
[1733157876955,0.2,96459.0,96451.0,0.207358]
[1733157877236,0.2,96466.0,96453.0,0.023]
[1733157877445,0.2,96459.0,96455.0,0.023]
[1733157877871,0.2,96465.0,96455.0,0.023]
[1733157878095,0.2,96459.0,96455.0,0.023]
[1733157878307,0.2,96465.0,96456.0,0.05405552]